bitfinex/quotes_SOLUSD_20250611
["timestamp","ask_amount","ask_price","bid_price","bid_amount"]
[1749670087000,1.89762314,163.34,163.25,49.98557587]
[1749670087207,23.98557587,163.3,163.25,49.98557587]
[1749670087522,23.98557587,163.29,163.25,49.98557587]
[1749670087930,23.98557587,163.29,163.25,26.0]
[1749670088220,23.98557587,163.29,163.25,56.11113044]
[1749670088522,23.98557587,163.3,163.25,56.11113044]
[1749670088902,23.98557587,163.3,163.25,49.98557587]
[1749670089104,23.98557587,163.3,163.25,56.11091711]
[1749670090107,23.98557587,163.3,163.25,49.98557587]
[1749670090305,1.89762314,163.34,163.25,49.98557587]
[1749670090306,23.98557587,163.29,163.25,26.0]
[1749670091096,23.98557587,163.3,163.25,56.11109891]
[1749670091296,23.98557587,163.31,163.26,42.7773863]
[1749670091718,23.98557587,163.31,163.27,23.98557587]
[1749670091919,23.98557587,163.32,163.27,23.98557587]
[1749670092408,23.98557587,163.33,163.28,23.98557587]
[1749670092794,25.59887587,163.34,163.29,23.98557587]
[1749670093204,23.98557587,163.33,163.28,23.98557587]
[1749670093828,23.98557587,163.32,163.28,18.79181043]
[1749670094903,23.98557587,163.33,163.28,42.7773863]
[1749670095706,23.98557587,163.33,163.29,23.98557587]
[1749670095903,23.98557587,163.33,163.29,30.10962128]
[1749670096322,23.98557587,163.33,163.28,50.91617209]
[1749670096529,23.98557587,163.33,163.29,23.98557587]
[1749670096698,23.98557587,163.34,163.29,23.98557587]
[1749670097227,14.38026351,163.34,163.29,14.38026351]
[1749670097534,14.38026351,163.36,163.31,14.38026351]
[1749670097698,14.38026351,163.35,163.31,0.14216157]
[1749670098217,14.38026351,163.35,163.3,33.02991237]
[1749670098424,2.6358,163.38,163.3,33.02991237]
[1749670098425,14.38026351,163.33,163.3,18.64964886]
[1749670098803,14.38026351,163.34,163.3,24.77327843]
[1749670099001,14.38026351,163.34,163.3,39.15354194]
[1749670099731,14.38026351,163.36,163.31,14.52242508]
[1749670100022,14.38026351,163.36,163.31,20.64541218]
[1749670100222,2.6358,163.38,163.32,33.02991237]
[1749670100223,14.38026351,163.37,163.32,33.02991237]
[1749670100413,14.38026351,163.37,163.33,14.38026351]
[1749670100902,2.6358,163.38,163.34,33.17207394]
[1749670100903,1.0,163.38,163.34,33.17207394]
[1749670101224,1.0,163.38,163.36,18.79181043]
[1749670101928,14.38026351,163.37,163.32,5.94]
[1749670102140,14.38026351,163.33,163.29,18.64964886]
[1749670102437,14.38026351,163.33,163.3,26.0]
[1749670102731,14.38026351,163.34,163.3,26.0]
[1749670104317,14.38026351,163.34,163.3,32.12346775]
[1749670104518,6.5148,163.37,163.3,32.12346775]
[1749670104519,20.89506351,163.37,163.32,14.38026351]
[1749670104839,14.38026351,163.37,163.33,18.79181043]
[1749670105235,14.38026351,163.37,163.33,14.52242508]
[1749670105738,14.38026351,163.37,163.33,18.79181043]
[1749670106740,1.0,163.38,163.33,39.2946046]
[1749670106955,14.38026351,163.37,163.33,39.2946046]
[1749670107153,15.38026351,163.38,163.33,39.2946046]
[1749670109050,1.0,163.38,163.35,18.79181043]
[1749670109254,1.0,163.38,163.36,14.38026351]
[1749670109669,1.0,163.38,163.36,20.50145348]
[1749670111071,1.0,163.38,163.36,46.50145348]
[1749670113748,1.0,163.38,163.37,18.79181043]
[1749670113946,1.0,163.38,163.37,33.17207394]
[1749670114248,1.0,163.38,163.37,39.2931488]
[1749670118648,15.38026351,163.38,163.32,6.12289717]
[1749670118847,15.38026351,163.38,163.33,14.38026351]
[1749670119163,15.38026351,163.38,163.35,26.0]
[1749670119372,1.0,163.38,163.35,26.0]
[1749670122562,1.0,163.38,163.35,46.50204795]
[1749670123594,1.0,163.38,163.35,40.38026351]
[1749670124185,1.0,163.38,163.35,26.0]
[1749670125361,1.0,163.38,163.35,32.12177611]
[1749670125797,1.0,163.38,163.35,46.50203962]
[1749670126097,1.0,163.38,163.35,40.38026351]
[1749670127575,1.0,163.38,163.35,46.50202748]
[1749670127774,1.0,163.38,163.36,39.29341493]
[1749670127973,1.0,163.38,163.37,14.38026351]
[1749670128782,1.0,163.38,163.36,24.91315142]
[1749670128991,1.0,163.38,163.36,33.17207394]
[1749670131091,1.0,163.38,163.31,114.26355496]
[1749670131286,1.0,163.38,163.35,18.79181043]
[1749670131485,1.0,163.38,163.35,33.17207394]
[1749670131685,1.0,163.38,163.36,14.38026351]
[1749670131994,1.0,163.38,163.35,33.17207394]
[1749670132569,1.0,163.38,163.35,39.29386488]
[1749670133869,1.0,163.38,163.35,18.79181043]
[1749670134069,15.38026351,163.38,163.36,26.0]
[1749670134417,14.38026351,163.37,163.33,26.0]
[1749670134907,15.38026351,163.38,163.33,40.38026351]
[1749670135109,14.38026351,163.37,163.33,26.0]
[1749670136090,1.0,163.38,163.33,26.0]
[1749670136403,1.0,163.38,163.34,14.38026351]
[1749670136982,15.38026351,163.38,163.33,46.50280601]
[1749670137182,14.38026351,163.37,163.33,26.0]
[1749670137576,13.38026351,163.36,163.33,18.64964886]
[1749670138177,20.85766351,163.37,163.33,18.64964886]
[1749670138513,20.85766351,163.37,163.33,39.15244915]
[1749670139313,20.85766351,163.37,163.33,33.02991237]
[1749670140507,20.85766351,163.37,163.33,18.64964886]
[1749670141018,14.38026351,163.36,163.33,18.64964886]
[1749670141211,14.38026351,163.36,163.32,26.0]
[1749670142196,14.38026351,163.36,163.32,32.1229324]
[1749670143617,14.38026351,163.36,163.32,26.0]
[1749670144104,14.38026351,163.36,163.32,32.12293618]
[1749670144503,14.38026351,163.36,163.33,1.52879358]
[1749670144714,14.38026351,163.35,163.34,1.52882376]
[1749670145088,15.95466351,163.35,163.34,1.52888841]
[1749670145418,15.95466351,163.35,163.34,1.52899466]
[1749670145713,15.95466351,163.35,163.34,1.52899564]
[1749670146024,15.95466351,163.35,163.34,1.52899839]
[1749670146206,15.95466351,163.35,163.3,18.64964886]
[1749670146520,14.38026351,163.33,163.31,1.52902783]
[1749670146706,14.38026351,163.33,163.32,1.52902783]
[1749670147501,14.38026351,163.33,163.32,1.52902836]
[1749670148020,14.38026351,163.33,163.32,1.52902783]
[1749670148326,14.38026351,163.33,163.32,1.52902024]
[1749670149009,14.38026351,163.33,163.32,3.05804751]
[1749670149223,14.38026351,163.33,163.32,3.05804815]
[1749670149428,14.38026351,163.33,163.32,1.52902024]
[1749670149905,14.38026351,163.33,163.32,3.05804611]
[1749670150105,14.38026351,163.33,163.32,3.05803852]
[1749670150932,14.38026351,163.33,163.32,1.52902024]
[1749670151440,14.38026351,163.34,163.32,1.52902024]
[1749670151606,14.38026351,163.34,163.33,1.52902007]
[1749670151928,14.38026351,163.34,163.33,1.52898743]
[1749670152238,14.38026351,163.34,163.32,1.52902024]
[1749670153002,1.5744,163.35,163.32,1.52902024]
[1749670153210,14.38026351,163.34,163.32,1.52902024]
[1749670153533,14.38026351,163.35,163.32,1.52902024]
[1749670153908,14.38026351,163.36,163.32,1.52902024]
[1749670154108,14.38026351,163.36,163.32,7.65195949]
[1749670154328,14.38026351,163.36,163.32,22.032223]
[1749670155123,14.38026351,163.36,163.32,15.90928375]
[1749670155324,14.38026351,163.36,163.32,22.03204959]
[1749670155522,20.85766351,163.37,163.32,22.03204959]
[1749670155722,14.38026351,163.36,163.32,15.90928375]
[1749670155923,14.38026351,163.36,163.32,1.52902024]
[1749670159035,14.38026351,163.36,163.32,15.90928375]
[1749670159837,20.85766351,163.37,163.33,18.64964886]
[1749670161142,14.38026351,163.34,163.32,27.52902024]
[1749670161529,14.38026351,163.35,163.32,27.52902024]
[1749670163247,14.38026351,163.37,163.33,33.02991237]
[1749670163550,14.38026351,163.37,163.33,51.83043954]
[1749670163854,14.38026351,163.37,163.33,37.45017603]
[1749670164028,14.38026351,163.36,163.33,37.45017603]
[1749670164849,14.38026351,163.37,163.33,37.45017603]
[1749670165043,14.38026351,163.36,163.33,37.45017603]
[1749670165242,14.38026351,163.37,163.33,43.57260257]
[1749670165549,14.38026351,163.37,163.33,37.45017603]
[1749670168429,14.38026351,163.36,163.33,37.45017603]
[1749670169054,14.38026351,163.37,163.33,37.45017603]
[1749670171151,14.38026351,163.37,163.33,43.57274018]
[1749670172149,15.38026351,163.38,163.33,57.95300369]
[1749670172329,15.38026351,163.38,163.34,14.38026351]
[1749670172330,1.0,163.38,163.34,14.38026351]
[1749670172831,1.0,163.38,163.34,20.5023356]
[1749670173838,1.0,163.38,163.35,18.64964886]
[1749670174043,1.0,163.38,163.35,33.02991237]
[1749670174241,1.0,163.38,163.37,14.38026351]
[1749670174847,1.0,163.38,163.37,20.17816863]
[1749670175051,1.0,163.38,163.37,20.17815645]
[1749670175233,1.0,163.38,163.37,20.17816362]
[1749670175552,1.0,163.38,163.37,20.17817135]
[1749670175755,1.0,163.38,163.37,20.17817134]
[1749670175944,1.0,163.38,163.35,32.12153221]
[1749670175945,1.0,163.38,163.35,18.64964886]
[1749670176144,1.0,163.38,163.36,1.52860323]
[1749670176452,1.0,163.38,163.35,18.64964886]
[1749670176649,1.0,163.38,163.36,1.5286117]
[1749670176839,1.0,163.38,163.35,18.64964886]
[1749670177159,1.0,163.38,163.36,1.52868664]
[1749670177344,1.0,163.38,163.35,18.64964886]
[1749670178060,1.0,163.38,163.36,1.52865248]
[1749670178360,1.0,163.38,163.37,1.52865231]
[1749670178581,1.0,163.38,163.37,1.52865214]
[1749670178931,1.0,163.38,163.35,18.64964886]
[1749670179133,1.0,163.38,163.36,1.52866874]
[1749670179353,1.0,163.38,163.37,1.52866908]
[1749670179662,1.0,163.38,163.37,1.52865214]
[1749670180245,1.0,163.38,163.37,1.52865973]
[1749670181556,1.0,163.38,163.35,46.77376543]
[1749670181758,1.0,163.38,163.36,1.52866765]
[1749670181958,1.0,163.38,163.37,1.52866748]
[1749670182463,1.0,163.38,163.37,1.52865973]
[1749670182671,1.0,163.38,163.35,46.77376543]
[1749670182845,1.0,163.38,163.36,1.52866007]
[1749670183036,1.0,163.38,163.37,1.52866007]
[1749670183355,1.0,163.38,163.35,46.77376543]
[1749670183529,1.0,163.38,163.36,1.52865214]
[1749670183734,1.0,163.38,163.37,1.52865214]
[1749670183937,15.38026351,163.38,163.35,26.2717429]
[1749670184254,14.38026351,163.37,163.35,26.2717429]
[1749670185056,14.38026351,163.36,163.33,26.42262121]
[1749670185257,14.38026351,163.34,163.33,18.80052717]
[1749670185561,14.38026351,163.34,163.33,20.32944706]
[1749670185739,14.38026351,163.34,163.33,20.3294472]
[1749670186256,14.38026351,163.34,163.33,20.32946484]
[1749670186444,14.38026351,163.34,163.33,18.80052717]
[1749670186647,14.38026351,163.34,163.33,20.32946484]
[1749670186853,14.38026351,163.34,163.33,18.80052717]
[1749670187056,14.38026351,163.34,163.33,20.3294643]
[1749670187359,14.38026351,163.34,163.33,18.80052717]
[1749670188137,1.5999,163.37,163.33,18.80052717]
[1749670188336,14.38026351,163.34,163.33,18.80052717]
[1749670193436,1.5999,163.37,163.33,18.80052717]
[1749670193645,14.38026351,163.34,163.33,18.80052717]
[1749670195255,20.79566351,163.34,163.33,18.80052717]
[1749670195445,20.79566351,163.34,163.32,1.52902024]
[1749670195446,0.28432314,163.33,163.32,1.52902024]
[1749670195654,16.32388665,163.33,163.27,7.62209404]
[1749670195860,16.32388665,163.33,163.26,7.62209404]
[1749670196047,14.38026351,163.27,163.26,7.62209404]
[1749670196672,14.38026351,163.27,163.25,7.62209404]
[1749670196850,1.94362314,163.33,163.25,7.62209404]
[1749670196851,14.38026351,163.26,163.25,7.62209404]
[1749670197056,14.38026351,163.26,163.23,5.88]
[1749670197485,1.94362314,163.33,163.23,5.88]
[1749670197486,0.28432314,163.3,163.23,5.88]
[1749670197772,14.38026351,163.26,163.23,5.88]
[1749670200296,14.38026351,163.24,163.17,11.37104834]
[1749670200582,14.38026351,163.2,163.17,18.64964886]
[1749670201086,0.28432314,163.26,163.17,24.77803038]
[1749670201383,14.38026351,163.21,163.17,24.77803038]
[1749670201569,1.6312,163.27,163.19,14.38026351]
[1749670201771,14.38026351,163.26,163.21,14.38026351]
[1749670202279,14.38026351,163.25,163.2,18.64964886]
[1749670202451,14.38026351,163.25,163.21,7.19263567]
[1749670202652,1.6312,163.27,163.21,7.19263567]
[1749670202885,14.38026351,163.24,163.21,7.19263567]
[1749670203058,1.6312,163.27,163.21,7.19263567]
[1749670203262,14.38026351,163.26,163.22,18.64964886]
[1749670203475,16.01146351,163.27,163.22,33.02991237]
[1749670203660,14.38026351,163.27,163.22,33.02991237]
[1749670203872,20.83406351,163.28,163.23,14.38026351]
[1749670204795,14.38026351,163.27,163.23,14.38026351]
[1749670205263,14.38026351,163.28,163.23,20.50646778]
[1749670205469,1.5268,163.31,163.25,14.38026351]
[1749670205672,15.90706351,163.31,163.26,40.38026351]
[1749670206499,1.5268,163.31,163.26,40.38026351]
[1749670206708,6.1846,163.32,163.26,40.38026351]
[1749670206709,20.56486351,163.32,163.27,14.38026351]
[1749670206888,14.38026351,163.31,163.26,26.0]
[1749670207083,14.38026351,163.31,163.26,40.38026351]
[1749670207278,6.1846,163.32,163.26,40.38026351]
[1749670207501,14.38026351,163.31,163.26,46.50542367]
[1749670207806,14.38026351,163.31,163.27,14.38026351]
[1749670209186,14.38026351,163.31,163.26,32.12516016]
[1749670209402,14.38026351,163.28,163.26,26.0]
[1749670209581,14.38026351,163.27,163.26,26.0]
[1749670209786,14.38026351,163.28,163.26,26.0]
[1749670209981,6.1846,163.32,163.26,32.12517297]
[1749670210209,14.38026351,163.3,163.26,46.50543648]
[1749670210386,14.38026351,163.31,163.26,46.50543648]
[1749670210705,14.38026351,163.3,163.26,32.12517297]
[1749670211004,14.38026351,163.3,163.26,26.0]
[1749670211389,14.38026351,163.29,163.26,26.0]
[1749670211587,14.38026351,163.28,163.24,39.15574045]
[1749670211982,14.38026351,163.3,163.25,14.38026351]
[1749670213004,14.38026351,163.29,163.25,14.38026351]
[1749670213213,14.38026351,163.29,163.24,39.15574045]
[1749670213505,14.38026351,163.26,163.22,6.12655797]
[1749670213711,14.38026351,163.26,163.22,18.64964886]
[1749670213880,14.38026351,163.23,163.21,26.0]
[1749670214202,14.38026351,163.26,163.22,18.64964886]
[1749670214405,14.38026351,163.26,163.22,33.02991237]
[1749670214615,14.38026351,163.26,163.22,18.64964886]
[1749670215198,14.38026351,163.26,163.22,39.15629285]
[1749670215611,14.38026351,163.26,163.22,24.77602934]
[1749670215805,14.38026351,163.26,163.22,39.15629285]
[1749670216592,14.38026351,163.26,163.22,24.77602934]
[1749670217604,14.38026351,163.26,163.21,40.38026351]
[1749670217605,14.38026351,163.24,163.21,26.0]
[1749670218689,14.38026351,163.22,163.18,24.77778582]
[1749670219089,14.38026351,163.21,163.17,32.12845879]
[1749670219292,14.38026351,163.2,163.17,26.0]
[1749670219587,14.38026351,163.2,163.17,32.1282714]
[1749670219800,14.38026351,163.21,163.17,32.1282714]
[1749670223906,14.38026351,163.2,163.17,32.1282714]
[1749670226518,1.5745,163.23,163.17,32.1282714]
[1749670226719,14.38026351,163.22,163.18,14.38026351]
[1749670226920,14.38026351,163.22,163.17,46.50853491]
[1749670227217,6.78642314,163.26,163.18,33.02991237]
[1749670227422,14.38026351,163.24,163.19,14.38026351]
[1749670227619,14.38026351,163.24,163.2,33.02991237]
[1749670227807,6.5021,163.26,163.2,18.64964886]
[1749670228004,14.38026351,163.25,163.21,14.38026351]
[1749670228210,14.38026351,163.25,163.2,33.02991237]
[1749670228405,14.38026351,163.25,163.21,6.12707554]
[1749670229121,14.38026351,163.26,163.22,14.38026351]
[1749670229509,14.38026351,163.23,163.19,18.64964886]
[1749670230115,14.38026351,163.22,163.18,6.12820198]
[1749670230499,14.38026351,163.23,163.18,20.50846549]
[1749670230707,14.38026351,163.25,163.2,14.38026351]
[1749670231314,14.38026351,163.25,163.21,14.38026351]
[1749670232112,16.02926351,163.28,163.23,14.38026351]
[1749670232341,16.02926351,163.28,163.24,6.12594952]
[1749670232716,14.38026351,163.27,163.23,6.12619161]
[1749670232921,14.38026351,163.27,163.22,20.50681811]
[1749670233417,14.38026351,163.26,163.22,20.50681811]
[1749670233618,14.38026351,163.25,163.21,24.77657432]
[1749670234133,14.38026351,163.24,163.2,26.0]
[1749670234635,14.38026351,163.24,163.19,20.50778773]
[1749670234636,14.38026351,163.22,163.18,18.64964886]
[1749670234813,14.38026351,163.23,163.18,65.15796183]
[1749670235520,14.38026351,163.23,163.19,14.38026351]
[1749670235718,14.38026351,163.26,163.21,14.38026351]
[1749670236526,20.93756351,163.3,163.25,14.38026351]
[1749670236832,1.661,163.32,163.24,6.12594952]
[1749670236833,16.04126351,163.32,163.27,14.38026351]
[1749670237125,14.38026351,163.31,163.25,18.79181043]
[1749670237337,14.38026351,163.28,163.24,24.77559838]
[1749670237517,14.38026351,163.29,163.24,39.15586189]
[1749670237833,14.38026351,163.3,163.25,14.38026351]
[1749670239234,14.38026351,163.28,163.24,18.64964886]
[1749670239430,14.38026351,163.27,163.24,18.64964886]
[1749670239814,14.38026351,163.28,163.24,18.64964886]
[1749670240015,14.38026351,163.29,163.24,39.15576454]
[1749670241045,14.38026351,163.3,163.25,14.38026351]
[1749670241220,1.661,163.32,163.26,14.38026351]
[1749670241221,14.38026351,163.31,163.26,14.38026351]
[1749670241420,14.38026351,163.31,163.27,14.38026351]
[1749670242244,14.38026351,163.31,163.26,14.38026351]
[1749670242428,14.38026351,163.27,163.22,11.37104834]
[1749670242616,14.38026351,163.23,163.21,18.64964886]
[1749670242821,14.38026351,163.23,163.2,17.49836754]
[1749670243044,14.38026351,163.24,163.2,43.49836754]
[1749670243247,20.90986351,163.28,163.2,57.87863105]
[1749670243248,14.38026351,163.25,163.2,57.87863105]
[1749670243716,14.38026351,163.25,163.2,46.50758271]
[1749670243918,6.5296,163.28,163.22,14.38026351]
[1749670244118,14.38026351,163.27,163.23,14.38026351]
[1749670244431,20.90986351,163.28,163.23,14.38026351]
[1749670245631,14.38026351,163.27,163.23,18.64964886]
[1749670246051,14.38026351,163.24,163.19,18.56368401]
[1749670246355,14.38026351,163.25,163.2,59.02991237]
[1749670247425,14.38026351,163.25,163.2,65.15734978]
[1749670247628,14.38026351,163.25,163.21,14.38026351]
[1749670247834,14.38026351,163.26,163.21,14.38026351]
[1749670249445,14.38026351,163.26,163.21,46.50714521]
[1749670249826,14.38026351,163.26,163.22,14.38026351]
[1749670250240,14.38026351,163.27,163.22,14.38026351]
[1749670250443,6.5296,163.28,163.21,32.1268817]
[1749670250444,6.5296,163.28,163.23,14.38026351]
[1749670250652,20.90986351,163.28,163.23,14.38026351]
[1749670250833,14.38026351,163.27,163.23,14.38026351]
[1749670251747,6.5296,163.28,163.23,14.38026351]
[1749670251955,14.38026351,163.27,163.23,14.38026351]
[1749670252252,14.38026351,163.29,163.24,14.38026351]
[1749670252431,14.38026351,163.3,163.25,14.38026351]
[1749670252742,22.09336351,163.32,163.27,14.38026351]
[1749670254555,14.38026351,163.3,163.25,14.38026351]
[1749670254957,14.38026351,163.29,163.24,26.0]
[1749670255165,14.38026351,163.29,163.24,40.38026351]
[1749670255627,14.38026351,163.29,163.24,46.50619166]
[1749670255827,7.7131,163.32,163.24,26.0]
[1749670255828,14.38026351,163.28,163.24,26.0]
[1749670256061,14.38026351,163.28,163.24,40.38026351]
[1749670256363,14.38026351,163.26,163.22,18.64964886]
[1749670256536,14.38026351,163.28,163.23,14.38026351]
[1749670257837,14.38026351,163.28,163.23,20.50651561]
[1749670258741,14.38026351,163.27,163.22,20.50685646]
[1749670259272,14.38026351,163.25,163.21,26.0]
[1749670259438,14.38026351,163.27,163.22,14.38026351]
[1749670259639,14.38026351,163.27,163.23,14.38026351]
[1749670260260,14.38026351,163.27,163.22,14.38026351]
[1749670261455,14.38026351,163.27,163.21,32.12693039]
[1749670261641,14.38026351,163.26,163.22,14.38026351]
[1749670261983,14.38026351,163.26,163.21,46.5071939]
[1749670262143,14.38026351,163.25,163.21,26.0]
[1749670262577,8.0129,163.25,163.19,5.92]
[1749670262769,14.38026351,163.23,163.19,5.92]
[1749670264896,8.0129,163.25,163.19,26.42797329]
[1749670265098,14.38026351,163.26,163.21,14.38026351]
[1749670265299,14.38026351,163.27,163.22,14.38026351]
[1749670265500,22.10976351,163.29,163.24,14.38026351]
[1749670265873,7.7295,163.29,163.24,18.64964886]
[1749670266118,14.38026351,163.25,163.21,11.37104834]
[1749670266291,14.38026351,163.22,163.17,11.37104834]
[1749670267185,14.38026351,163.21,163.19,26.0]
[1749670267517,14.38026351,163.2,163.16,29.79798606]
[1749670267799,0.42648471,163.27,163.16,29.79798606]
[1749670267800,0.42648471,163.27,163.17,1.53009092]
[1749670268007,0.42648471,163.27,163.16,50.55586527]
[1749670268008,14.38026351,163.21,163.16,64.93612878]
[1749670268171,14.38026351,163.23,163.18,33.02991237]
[1749670268371,14.38026351,163.24,163.19,15.91032062]
[1749670268606,14.38026351,163.24,163.19,14.38026351]
[1749670268774,14.38026351,163.24,163.2,1.52990837]
[1749670268975,14.38026351,163.24,163.21,1.52990676]
[1749670269290,14.38026351,163.24,163.22,1.52986856]
[1749670269493,14.38026351,163.24,163.23,1.5298684]
[1749670269715,14.38026351,163.24,163.19,14.38026351]
[1749670269915,14.38026351,163.23,163.2,1.5298689]
[1749670270119,14.38026351,163.23,163.21,1.5298689]
[1749670270331,14.38026351,163.23,163.2,6.12745098]
[1749670270520,14.38026351,163.23,163.21,1.5298613]
[1749670270715,14.38026351,163.23,163.22,1.52988104]
[1749670270911,14.38026351,163.23,163.22,1.52988087]
[1749670271531,0.28432314,163.28,163.2,6.12745098]
[1749670271730,14.38026351,163.24,163.2,6.12745098]
[1749670272627,14.38026351,163.24,163.2,20.50771449]
[1749670272834,14.38026351,163.25,163.2,20.50771449]
[1749670273015,14.38026351,163.26,163.21,14.38026351]
[1749670273206,0.28432314,163.28,163.2,6.12745098]
[1749670273207,14.38026351,163.25,163.2,20.50771449]
[1749670274832,14.38026351,163.25,163.2,6.12745098]
[1749670275002,14.38026351,163.22,163.19,26.0]
[1749670275203,14.38026351,163.22,163.18,17.49921482]
[1749670275204,14.38026351,163.2,163.18,11.37104834]
[1749670275414,14.38026351,163.2,163.16,38.93601286]
[1749670275415,14.38026351,163.2,163.17,11.37104834]
[1749670275609,14.38026351,163.2,163.17,17.49961004]
[1749670275815,14.38026351,163.21,163.17,17.49961004]
[1749670276008,14.38026351,163.21,163.17,6.1285617]
[1749670276207,14.38026351,163.21,163.16,76.30705428]
[1749670276612,14.38026351,163.21,163.16,64.93600594]
[1749670276999,14.38026351,163.21,163.16,76.30705428]
[1749670277317,14.38026351,163.22,163.17,14.38026351]
[1749670278417,14.38026351,163.21,163.16,76.30705428]
[1749670279219,14.38026351,163.21,163.16,64.93600594]
[1749670279728,14.38026351,163.22,163.16,50.55574243]
[1749670279918,14.38026351,163.21,163.16,64.93600594]
[1749670282533,14.38026351,163.2,163.16,44.42693772]
[1749670282732,14.38026351,163.19,163.16,44.42693772]
[1749670283236,14.38026351,163.19,163.16,50.55579011]
[1749670283530,14.38026351,163.2,163.16,50.55579011]
[1749670286239,14.38026351,163.2,163.16,44.42693772]
[1749670286523,0.28432314,163.25,163.16,18.42693772]
[1749670286524,14.38026351,163.18,163.16,18.42693772]
[1749670287062,14.38026351,163.19,163.16,24.55588158]
[1749670287437,7.99452314,163.24,163.16,24.55588158]
[1749670287438,14.38026351,163.21,163.16,38.93614509]
[1749670290173,14.38026351,163.22,163.17,14.38026351]
[1749670290452,14.38026351,163.28,163.17,14.38026351]
[1749670290453,7.6176,163.28,163.21,14.38026351]
[1749670290638,7.6176,163.28,163.18,18.64964886]
[1749670290639,14.38026351,163.27,163.22,14.38026351]
[1749670290823,14.38026351,163.26,163.22,14.38026351]
[1749670291740,7.6176,163.28,163.24,14.38026351]
[1749670291947,7.6176,163.28,163.24,32.94084628]
[1749670293453,7.6176,163.28,163.25,14.38026351]
[1749670293682,26.28432314,163.33,163.26,7.65466967]
[1749670293683,8.3073,163.32,163.26,7.65466967]
[1749670293828,22.68756351,163.32,163.27,15.90985941]
[1749670294139,8.3073,163.32,163.28,14.38026351]
[1749670294347,8.3073,163.32,163.29,1.52959521]
[1749670294538,8.3073,163.32,163.3,1.52946121]
[1749670294748,14.38026351,163.34,163.3,18.54620981]
[1749670294954,14.38026351,163.34,163.31,1.529421]
[1749670295156,14.38026351,163.34,163.3,18.54620981]
[1749670295357,7.9605,163.36,163.31,1.52938958]
[1749670295659,14.38026351,163.35,163.32,1.52929549]
[1749670295867,7.9605,163.36,163.33,1.52929549]
[1749670296054,15.38026351,163.38,163.34,1.52929549]
[1749670296243,15.38026351,163.38,163.33,14.38026351]
[1749670296436,14.38026351,163.37,163.34,1.52890264]
[1749670296758,14.38026351,163.37,163.3,24.66978413]
[1749670297069,14.38026351,163.34,163.3,32.92647332]
[1749670297252,14.38026351,163.34,163.31,1.52886091]
[1749670297438,14.38026351,163.34,163.32,1.52905792]
[1749670297639,14.38026351,163.34,163.33,1.52905814]
[1749670297851,14.38026351,163.34,163.33,1.5290578]
[1749670298052,14.38026351,163.34,163.3,18.54620981]
[1749670298246,14.38026351,163.36,163.31,1.5290578]
[1749670298444,14.38026351,163.32,163.3,18.54620981]
[1749670298666,14.38026351,163.31,163.3,18.54620981]
[1749670298862,14.38026351,163.32,163.3,20.07547521]
[1749670299067,14.38026351,163.32,163.3,18.54620981]
[1749670299274,23.97381849,163.32,163.3,18.54620981]
[1749670299453,23.97381849,163.32,163.31,1.52927975]
[1749670299776,23.97381849,163.32,163.31,1.52927958]
[1749670300473,23.97381849,163.32,163.3,18.54620981]
[1749670300675,23.97381849,163.32,163.31,1.52927958]
[1749670300873,23.97381849,163.32,163.3,18.54620981]
[1749670301294,23.97381849,163.32,163.31,1.52927215]
[1749670301469,23.97381849,163.32,163.31,1.52927199]
[1749670301673,23.97381849,163.32,163.3,18.54620981]
[1749670302070,23.97381849,163.32,163.31,1.52927975]
[1749670302392,0.28432314,163.32,163.31,1.52927215]
[1749670302612,24.25814163,163.32,163.31,1.52940799]
[1749670302782,24.25814163,163.32,163.3,18.54620981]
[1749670302987,23.97381849,163.31,163.3,18.54620981]
[1749670303184,23.97381849,163.31,163.3,20.07563208]
[1749670303385,23.97381849,163.31,163.3,20.07565736]
[1749670303896,23.97381849,163.31,163.3,20.07563692]
[1749670304106,23.97381849,163.31,163.3,20.0756698]
[1749670304583,23.97381849,163.31,163.3,18.54620981]
[1749670304901,23.97381849,163.31,163.3,20.07564593]
[1749670305202,23.97381849,163.31,163.3,20.07563584]
[1749670305379,23.97381849,163.31,163.3,20.07564674]
[1749670305582,24.25814163,163.31,163.3,18.54620981]
[1749670305795,24.25814163,163.31,163.3,20.07582771]
[1749670306203,24.25814163,163.31,163.3,20.07585228]
[1749670306385,24.25814163,163.31,163.3,18.54620981]
[1749670306604,24.25814163,163.31,163.3,20.07585886]
[1749670306776,24.25814163,163.31,163.3,20.07585077]
[1749670306977,24.25814163,163.31,163.3,20.07585023]
[1749670307200,24.25814163,163.31,163.3,20.07584969]
[1749670307402,23.97381849,163.31,163.3,20.07584969]
[1749670307593,23.97381849,163.31,163.3,18.54620981]
[1749670307781,23.97381849,163.31,163.3,20.07573212]
[1749670308802,23.97381849,163.31,163.3,20.07570789]
[1749670308989,23.97381849,163.31,163.3,20.07570842]